Cogmind - Beta 14 @@@ ROGUE MODE // 2024.11.01 @ 23:28:42 Player: CanadianCogs Result: Destroyed by S-10 Pest with Light Assault Rifle Performance ------------- Evolutions (0) 0 Regions Visited (1) 200 Robots Destroyed (9) 45 Value Destroyed (215) 215 Prototype IDs (0) 0 Alien Tech Used (0) 0 Bonus (0) 0 TOTAL SCORE: 460 Bonus ------- None Cogmind --------- Core Integrity 0/250 Matter 300/300 Energy 100/100 System Corruption 0% Temperature Cool (0) Movement Core (100) Ox1 Location -10/Materials Parts ------- > --- POWER (1) -------- (None) > --- PROPULSION (2) --- (None) > --- UTILITY (2) ------ Small Storage Unit > --- WEAPON (2) ------- (None) > --- INVENTORY (8) ---- Light Nuclear Core Hover Unit Hover Unit Hover Unit Improved Heat Sink High-capacity Matter Pod (200) Sensor Array Signal Interpreter Peak State ------------ > --- POWER ------------ Ion Engine > --- PROPULSION ------- Light Treads Light Treads > --- UTILITY ---------- Small Storage Unit Seismic Detector > --- WEAPON ----------- Assault Rifle Light Assault Rifle > --- INVENTORY -------- Light Nuclear Core Hover Unit Hover Unit Hover Unit Heat Sink High-capacity Matter Pod Sensor Array Signal Interpreter [Rating: 8] Favorites ----------- Power Ion Engine Engine Ion Engine Propulsion Light Treads Treads Light Treads Utility Small Storage Unit Device Seismic Detector Storage Small Storage Unit Weapon Light Assault Rifle Ballistic Gun Light Assault Rifle Build | -11 -10 ------- Run | Yrd Mat Slots Evolved . | . . Power . | . . Propulsion . | . . Utility . | . . Weapon . | . . Parts Attached 16 | 7 9 Power 2 | 1 1 Engine 2 | 1 1 Core . | . . Reactor . | . . Propulsion 5 | 2 3 Treads 5 | 2 3 Leg . | . . Wheel . | . . Hover . | . . Flight . | . . Utility 2 | 2 . Device 1 | 1 . Storage 1 | 1 . Processor . | . . Hackware . | . . Protection . | . . Artifact . | . . Weapon 7 | 2 5 Energy Gun . | . . Energy Cannon . | . . Ballistic Gun 7 | 2 5 Ballistic Cannon . | . . Launcher . | . . Special Weapon . | . . Impact Weapon . | . . Slashing Weapon . | . . Piercing Weapon . | . . Special Melee Weapon . | . . Unidentified Prototypes . | . . Parts Lost 6 | . 6 Power 1 | . 1 Propulsion 2 | . 2 Utility 1 | . 1 Weapon 2 | . 2 Highest Loss Streak 6 | . 6 To Critical Strikes . | . . Average Slot Usage (%) 94 | . 94 Engine 13 | . 13 Treads 26 | . 26 Device 13 | . 13 Storage 14 | . 14 Ballistic Gun 25 | . 25 Peak Build Rating 8 | 7 8 Average Rating 6 | 4 7 On Entrance 3 | . 7 Naked Turns . | . . Heaviest Build 14 | 14 14 Greatest Support 40 | 40 40 Greatest Overweight (x) 3 | . 3 Average Overweight (x) . | . . Largest Inventory Capacity 8 | 8 8 Average Capacity 7 | 7 8 Most Carried 8 | 5 8 Average Carried 4 | . 4 Final Capacity 8 | 8 8 Final Carried 8 | . 8 Class Distribution -------------------- 100% | Mutant Dominant Class ---------------- Mutant | -10/Materials Resources | -11 -10 ----------- Run | Yrd Mat Matter Collected 611 | 246 365 Remotely . | . . Salvage Created 295 | 21 274 Parts 20 | 1 19 Haulers Intercepted . | . . Recyclers Shooed . | . . Parts Field Recycled . | . . Retrieved Matter . | . . Parts Self-Destructed . | . . Prevented . | . . Kills | -11 -10 ------- Run | Yrd Mat Combat Hostiles Destroyed 7 | . 7 Melee 1 | . 1 Guns 6 | . 6 Classes Destroyed 4 | 1 3 Tunneler 1 | 1 . Watcher 1 | . 1 Swarmer 3 | . 3 Grunt 4 | . 4 Best Kill Streak 3 | 1 3 Combat Bots Only 3 | . 3 Max Kills in Single Turn 1 | 1 1 Gunslinging . | . . Exploded . | . . Melee 1 | . 1 Uniques/NPCs Destroyed . | . . Combat | -11 -10 -------- Run | Yrd Mat Hostile Shots Fired 99 | . 99 Missed 19 | . 19 Damage Taken 774 | . 774 Core 252 | . 252 Absorbed by Shields . | . . Core Remaining (%) 100 | 100 . Volleys Fired 40 | 8 32 Largest 2 | 2 2 Hottest 40 | 40 40 Shots Fired 79 | 16 63 Gun 79 | 16 63 Cannon . | . . Launcher . | . . Special . | . . Kinetic 79 | 16 63 Thermal . | . . Explosive . | . . Electromagnetic . | . . Robot Hit Streak 14 | 4 14 Robot Miss Streak 2 | 1 2 Penetration Max . | . . Secondary Targets 1 | . 1 Max Gunslinging Chain 1 | . 1 Shots Hit Robots 55 | 11 44 Core Hits 24 | 2 22 Critical Kills . | . . Critical Parts Destroyed 1 | 1 . Critical Strikes 1 | 1 . Destroy 1 | 1 . Melee Attacks . | . . Impact . | . . Slashing . | . . Piercing . | . . Sneak Attacks . | . . Combat Hostiles . | . . Follow-up Attacks . | . . Damage Inflicted 592 | 93 499 Guns 548 | 93 455 Cannons . | . . Explosions . | . . Melee . | . . Ramming 44 | . 44 Kinetic 548 | 93 455 Thermal . | . . Explosive . | . . Electromagnetic . | . . Impact . | . . Slashing . | . . Piercing . | . . Highest Corruption . | . . Average Corruption . | . . Corruption Purged . | . . Corruption Blocked . | . . Overload Shots . | . . Overflow Damage . | . . Projectiles . | . . Explosions . | . . Melee . | . . Knockbacks . | . . Impact . | . . Kinetic . | . . Secondary . | . . Self-Inflicted Damage 2 | . 2 Shots . | . . Rammed 28 | . 28 Targets Rammed 29 | . 29 Kicked . | . . Crushed 1 | . 1 Highest Temperature 18 | . 18 Average Temperature 9 | . 9 Received Heat Transfer 207 | . 207 Siege Activations . | . . Robots Corrupted . | . . Combat Hostiles . | . . Parts Fried . | . . Impact Corruptions . | . . Robots Melted . | . . Combat Hostiles . | . . Parts Melted . | . . Heat Transferred . | . . Parts Sabotaged . | . . Parts Stolen . | . . Parts Stripped . | . . Power Chain Reactions . | . . Alert | -11 -10 ------- Run | Yrd Mat Peak Influence 139 | 5 139 Initial 3 | . 3 Average 34 | . 38 Maximum Alert Level . | . . Low Security (%) 100 | 100 100 Level 1 . | . . Level 2 . | . . Level 3 . | . . Level 4 . | . . Level 5 . | . . High Security . | . . Max Security . | . . Squads Dispatched 1 | . 1 Investigation . | . . Extermination . | . . Reinforcement 1 | . 1 Assault . | . . Garrison . | . . Intercept . | . . Searches Triggered . | . . Construction Impeded . | . . Haulers Reinforced . | . . Active Scanning Responses . | . . Cargo Convoy Interrupts . | . . Stealth | -11 -10 --------- Run | Yrd Mat Distress Signals 2 | . 2 Communications Jammed . | . . Distress Signals . | . . Times Spotted 20 | . 20 Peak Tracking Total 6 | . 6 Tactical Retreats 2 | . 2 Traps | -11 -10 ------- Run | Yrd Mat Traps Triggered 4 | . 4 Indirectly . | . . Trap Hack Attempts . | . . Triggered . | . . Disarmed . | . . Reprogrammed . | . . Reused . | . . Traps Extracted . | . . Installed . | . . Triggered . | . . Machines | -11 -10 ---------- Run | Yrd Mat Machines Disabled . | . . Max in Single Turn . | . . Machines Repaired . | . . Machines Dismantled . | . . Machines Sabotaged . | . . Overloaded Fab Kills . | . . Hacking | -11 -10 --------- Run | Yrd Mat Machines Accessed 3 | . 3 Terminals 2 | . 2 Fabricators . | . . Repair Stations . | . . Recycling Units 1 | . 1 Scanalyzers . | . . Garrison Access . | . . Total Hacks 10 | . 10 Successful 4 | . 4 Failed 6 | . 6 Catastrophic . | . . Database Lockouts . | . . Manual 4 | . 4 Terminals 8 | . 8 Fabricators . | . . Repair Stations . | . . Recycling Units 2 | . 2 Scanalyzers . | . . Garrison Access . | . . Terminal Hacks 1 | . 1 Zone Layout 1 | . 1 Fabricator Hacks . | . . Repair Station Hacks . | . . Recycling Unit Hacks 1 | . 1 Report Inventory 1 | . 1 Scanalyzer . | . . Garrison Access Hacks . | . . Unauthorized Hacks 2 | . 2 Terminals 2 | . 2 Botnet 2 | . 2 Fabricators . | . . Repair Stations . | . . Recycling Units . | . . Scanalyzers . | . . Garrison Access . | . . Data Cores Recovered . | . . Used . | . . Hacking Detections 3 | . 3 Full Trace Events 1 | . 1 Feedback Events . | . . Feedback Blocked . | . . Robot Schematics Acquired . | . . Robots Built . | . . Authchips . | . . Time . | . . Total Robot Build Rating . | . . Part Schematics Acquired . | . . Parts Built . | . . Authchips . | . . Time . | . . Total Part Build Rating . | . . Parts Repaired . | . . Time . | . . Parts Recycled . | . . Recycled Matter . | . . Retrieved Matter . | . . Retrieved Components . | . . Parts Scanalyzed . | . . Part Schematics Acquired . | . . Parts Damaged . | . . Bothacking | -11 -10 ------------ Run | Yrd Mat Used RIF Installer . | . . Robots Hacked . | . . Non-combat . | . . Combat . | . . Robot Hacks Applied . | . . Relay Couplers Released . | . . Fabnet Peak Effective % . | . . Robots Rewired . | . . Allies Hacked . | . . Hacks Repelled . | . . Allies | -11 -10 -------- Run | Yrd Mat Total Allies . | . . Largest Group . | . . Highest-Rated Group . | . . Highest-Rated Ally . | . . Total Orders . | . . Ally Attacks . | . . Total Damage . | . . Kills . | . . Allies Corrupted . | . . Allies Melted . | . . Intel | -11 -10 ------- Run | Yrd Mat Robot Analysis Total . | . . Derelict Logs Recovered . | . . Drone Launches . | . . Drone Recoveries . | . . Exploration | -11 -10 ------------- Run | Yrd Mat Turns Passed 715 | 76 639 Spaces Moved 271 | 34 237 Core 14 | 12 2 Treads 257 | 22 235 Legs . | . . Wheels . | . . Hover . | . . Flight . | . . Fastest Speed 50 | 50 160 Average Speed 155 | 121 160 Slowest Speed 200 | 160 200 Overloaded Moves . | . . Propulsion Burnouts . | . . Robots Hopped . | . . Cave-ins Triggered . | . . Exploration Rate (%) 26 | 4 49 Regions Visited 1 Branch Regions . Pre-discovered Areas . | . . Known Exits Taken . | . . Unknown Exits Taken 1 | 1 . Scrap Searched . | . . Spaces Dug . | . . Terrain Destroyed . | . . Melee . | . . Projectile . | . . AOE . | . . Terrain Rammed . | . . Walls Destroyed . | . . Machines Disabled . | . . Actions | -11 -10 --------- Run | Yrd Mat Total 472 | 54 418 Wait 101 | . 101 Move 270 | 33 237 Hop . | . . Pick Up 15 | 6 9 Fast Attach 10 | 1 9 Attach 6 | 6 . Detach . | . . Swap . | . . Drop 1 | . 1 Fire 40 | 8 32 Melee . | . . Ram 5 | . 5 Kick . | . . Crush 24 | . 24 Escape Stasis . | . . Rewire . | . . Trap . | . . Miscellaneous . | . . Route ------- -11/Scrapyard -10/Materials (discovered 1 exit: [*Mat]) History --------- Turn | Location | Event 6 | -11/Scrapyard | Discovered new exit (range 15) 77 | -11/Scrapyard | Entered Materials 317 | -10/Materials | Build established: Mutant 467 | -10/Materials | Discovered new exit (range 8) 682 | -10/Materials | Core integrity fell below 50% 708 | -10/Materials | Core integrity fell below 20% 716 | -10/Materials | Destroyed by S-10 Pest with Light Assault Rifle Last Messages --------------- 00682_ K-01 Serf collects debris. 00685_ Slammed into S-10 Pest. 00685_ U-05 Engineer lays Concrete. 00687_ K-01 Serf collects debris. 00687_ Slammed into S-10 Pest. 00689_ Lgt. Treads destroyed. 00690_ Slammed into S-10 Pest. 00694_ Lgt. Assault Rifle destroyed. 00694_ U-05 Engineer lays Concrete. 00695_ Slammed into S-10 Pest. 00695_ U-05 Engineer builds a Wall. 00696_ T-07 Excavator is excavating. 00696_ Slammed into S-10 Pest. 00706_ Lgt. Treads destroyed. 00707_ Slammed into S-10 Pest. 00713_ T-07 Excavator is excavating. 00713_ Slammed into K-01 Serf. 00714_ Ion Engine destroyed. 00715_ S-10 Pest destroyed. 00715_ Slammed into S-10 Pest. Map ----- +----------------------------------------------------+ | ???????????????????????# #""" ? ???????????# | | ????????????????######## #""" ???????????????# | | ????????????????# # # ???????????????# | | ????????????????# """ # # ???????????????# | | ????????????????# """ + ######???????????????# | | ????????????????# """ # #????#???????????????# | | ????????????????# # #????#???????????????## | | ????????????????# # #????#????????????????? | | ????????????????######## #????#????????????????? | | ???????????????######### #?????????????????????? | | ???????????????# # #?????????????????????? | | ???????????????# T | + #?????????????????????? | | ???????????????# # #?????????????????????? | | ???????????????######### #?????????????????????? | | ???????????????????????# #?????????????????????? | | ???????????????????????### #?????????????????????? | | ?????????????????????????# #?????????????????????? | | ?????????????????????????# #?????????????????????? | | ???????????????###???????# #?????????????????????? | | ??????????????## ##?????# #?????????????????????? | | ??????????????# ##???# #?????????????????????? | | ???????????????? #???# #?????????????????????? | | ?????????????????? ???# #?????????????????????? | | ?????????????????### ###?# #????????? ???????? | | ?????? #######|% ### ####### ! #??????? | | ?????# o % %@s k k +??????? | | ?????# =% s% #??????? | | ?????# % T ##??????????? | | ?????? ####### #### #???????????? | | ??????#??????????#######??# k #???????????? | | ??????????????????????????# w|| #???????????? | | ??????????????????????????# || #???????????? | | ??????????????????????????# || #???????????? | | ??????????????????????????+ +???????????? | | ??????????????????????????# #???????????? | | ???????????????????????????## """ #???????????? | | ????????????????????????????? """ #???????????? | | ????????????????????????????? "??? #???????????? | | ????????????????????????????? ???? #???????????? | | ????????????????????????????? ?????????????????? | | ?????????????????????????????? ?????????????????? | | ?????????????????????????????????????????????????? | | ?????????????????????????????????????????????????? | | ?????????????????????????????????????????????????? | | ?????????????????????????????????????????????????? | | ?????????????????????????????????????????????????? | | | | | | | | | +----------------------------------------------------+ Best States ------------- Heat Dissipation 25 Energy Generation 10 Energy Capacity 250 Matter Stores 300 Matter Capacity 300 Sight Range 16 Terrain Scan Density 10 Evasion (%) 50 Recoil Reduction 2 Item Schematics ----------------- None Robot Schematics ------------------ None Fabricated ------------ Nothing Alien Tech Used ----------------- None Achievements -------------- None Challenges ------------ None Game ------ Seed BraceTerrabombBroadsword Manual? 0 Play Time 00:12:25 Cumulative 56.0 hours Start 2024.11.01 @ 23:21:23 End 2024.11.01 @ 23:28:42 Sessions 1 Manual Loads 0 Difficulty Rogue Special Mode None Game No. 95 Rogue 95 Adventurer 0 Explorer 0 Win Type - Total 0 Types 0/0/0/0/0/0/0/0/0 Lore% 18 Gallery% 34 Achievement% 32 Wizard Run 0 Options --------- Layout 0 ASCII 0 Keyboard 0 Movement Mouse Keybinds 0 Fullscreen 2 Font 18/SmallcapsGlow Map View 38x25 Zoom Use 89% Tactical HUD 1 Map Filters NONE Filters NONE Steam 1 RUN: 17a63204-1233-42f3-aa71-34d9e9da2e38